[Event "Sunway Sitges Chess Festival"]
[Date "2024.12.22"]
[White "Schmitt, Carsten"]
[Black "Sayce, Hannah"]
[WhiteElo "1976"]
[BlackElo "1821"]
[Round "10.41"]
[Result "1-0"]
[TimeControl "40/5400+30:1800+30"]

1. c4 {[%clk 1:30:58]} 1... e5 {[%clk 1:25:18]} 2. g3 {[%clk 1:31:23]} 2... Nf6
{[%clk 1:25:41]} 3. Bg2 {[%clk 1:31:49]} 3... d5 {[%clk 1:26:02]} 4. cxd5 {[%clk
1:32:15]} 4... Nxd5 {[%clk 1:26:24]} 5. Nc3 {[%clk 1:32:42]} 5... Nb6 {[%clk
1:26:45]} 6. Nf3 {[%clk 1:33:07]} 6... Nc6 {[%clk 1:27:09]} 7. O-O {[%clk
1:33:34]} 7... Be7 {[%clk 1:27:29]} 8. d3 {[%clk 1:34:00]} 8... O-O {[%clk
1:27:48]} 9. Be3 {[%clk 1:34:27]} 9... Be6 {[%clk 1:24:47]} 10. Rc1 {[%clk
1:34:48]} 10... f6 {[%clk 1:20:57]} 11. d4 {[%clk 1:33:29]} 11... exd4 {[%clk
1:17:18]} 12. Nxd4 {[%clk 1:33:52]} 12... Nxd4 {[%clk 1:16:26]} 13. Bxd4 {[%clk
1:34:16]} 13... c5 {[%clk 1:12:15]} 14. Be3 {[%clk 1:31:23]} 14... Qc8 {[%clk
1:03:59]} 15. Na4 {[%clk 1:07:46]} 15... Rd8 {[%clk 0:59:13]} 16. Qc2 {[%clk
1:07:15]} 16... Nxa4 {[%clk 0:51:20]} 17. Qxa4 {[%clk 1:07:38]} 17... b5 {[%clk
0:44:00]} 18. Qa3 {[%clk 0:53:57]} 18... Bd5 {[%clk 0:19:24]} 19. Bxc5 {[%clk
0:53:55]} 19... Bxg2 20. Kxg2 {[%clk 0:40:26]} 20... Qb7+ {[%clk 0:09:34]} 21.
Qf3 {[%clk 0:40:25]} 21... Qd7 {[%clk 0:03:18]} 22. Rfd1 {[%clk 0:33:03]} 22...
Qe6 {[%clk 0:02:51]} 23. Bxe7 Qxe7 {[%clk 0:03:02]} 24. Qb3+ {[%clk 0:33:17]}
24... Kh8 {[%clk 0:01:43]} 25. Rxd8+ Rxd8 {[%clk 0:00:57]} 26. Qxb5 {[%clk
0:32:17]} 26... Qe4+ {[%clk 0:00:58]} 27. f3 {[%clk 0:32:26]} 27... Qe3 {[%clk
0:00:56]} 28. Qd3 {[%clk 0:29:03]} 28... Qb6 {[%clk 0:01:17]} 29. Qc3 {[%clk
0:29:11]} 29... Re8 {[%clk 0:00:32]} 30. Rc2 {[%clk 0:29:14]} 30... h6 {[%clk
0:00:42]} 31. h4 {[%clk 0:28:08]} 31... Qa6 {[%clk 0:00:41]} 32. Kf2 {[%clk
0:22:57]} 32... Qxa2 {[%clk 0:00:59]} 33. h5 {[%clk 0:15:32]} 33... Qa6 {[%clk
0:00:43]} 34. Qc4 {[%clk 0:11:53]} 34... Qa5 {[%clk 0:00:39]} 35. Qf7 {[%clk
0:05:38]} 35... Qe5 {[%clk 0:01:02]} 36. Qxa7 {[%clk 0:02:24]} 36... Qxh5 {[%clk
0:01:17]} 37. Kg2 {[%clk 0:02:47]} 37... Qb5 {[%clk 0:01:17]} 38. Qf2 {[%clk
0:00:04]} 38... Qb3 {[%clk 0:00:57]} 39. e4 {[%clk 0:01:07]} 39... Rd8 {[%clk
0:00:54]} 40. Qc5 {[%clk 0:31:12]} 40... Qd3 {[%clk 0:30:57]} 41. Qc3 {[%clk
0:30:50]} 41... Qd1 {[%clk 0:25:51]} 42. b4 {[%clk 0:30:12]} 42... f5 {[%clk
0:25:25]} 43. exf5 {[%clk 0:28:46]} 43... Rd3 {[%clk 0:24:06]} 44. Qc8+ {[%clk
0:28:07]} 44... Kh7 {[%clk 0:24:20]} 45. Qc6 {[%clk 0:28:19]} 45... Rd2+ {[%clk
0:23:30]} 46. Rxd2 {[%clk 0:28:28]} 46... Qxd2+ {[%clk 0:23:54]} 47. Kh3 {[%clk
0:28:46]} 47... Qxb4 {[%clk 0:23:16]} 48. Qg6+ {[%clk 0:29:06]} 48... Kh8 {[%clk
0:20:08]} 49. f6 {[%clk 0:28:51]} 49... gxf6 {[%clk 0:20:16]} 50. Qxh6+ {[%clk
0:28:50]} 50... Kg8 {[%clk 0:20:36]} 51. Qg6+ {[%clk 0:29:11]} 51... Kh8 {[%clk
0:20:32]} 52. Qxf6+ {[%clk 0:29:32]} 52... Kg8 {[%clk 0:20:56]} 53. Qg5+ {[%clk
0:29:29]} 53... Kf7 {[%clk 0:20:36]} 54. Qf5+ {[%clk 0:29:47]} 54... Ke7 {[%clk
0:19:40]} 55. Qe4+ {[%clk 0:30:10]} 55... Qxe4 {[%clk 0:19:56]} 56. fxe4 {[%clk
0:30:39]} 56... Kf6 {[%clk 0:19:53]} 57. Kg4 {[%clk 0:31:00]} 57... Ke5 {[%clk
0:19:32]} 58. Kh5 {[%clk 0:31:20]} 58... Kxe4 {[%clk 0:19:22]} 59. g4 {[%clk
0:29:10]} 59... Ke5 {[%clk 0:19:30]} 60. Kh6 {[%clk 0:29:21]} 60... Kf6 {[%clk
0:19:17]} 61. g5+ {[%clk 0:29:45]} 61... Kf7 {[%clk 0:19:27]} 62. Kh7 {[%clk
0:30:09]} 1-0

[Variant "Standard"]
[Site "Europe Echecs"]

[Event "Sunway Sitges Chess Festival"]
[Date "2024.12.22"]
[White "Charvein, Gabriel"]
[Black "Badenhorst, Chloe"]
[WhiteElo "2119"]
[BlackElo "1970"]
[Round "10.42"]
[Result "1/2-1/2"]
[TimeControl "40/5400+30:1800+30"]

1. e4 {[%clk 1:30:58]} 1... c6 {[%clk 1:30:47]} 2. Nf3 {[%clk 1:31:17]} 2... d5
{[%clk 1:30:52]} 3. Nc3 {[%clk 1:31:40]} 3... Bg4 {[%clk 1:27:09]} 4. h3 {[%clk
1:31:46]} 4... Bxf3 {[%clk 1:27:36]} 5. Qxf3 {[%clk 1:31:52]} 5... Nf6 {[%clk
1:27:37]} 6. exd5 {[%clk 1:28:53]} 6... cxd5 {[%clk 1:24:32]} 7. Bb5+ {[%clk
1:15:03]} 7... Nc6 {[%clk 1:23:28]} 8. d4 {[%clk 1:14:50]} 8... e6 {[%clk
1:22:05]} 9. O-O {[%clk 1:13:56]} 9... Bd6 {[%clk 1:05:49]} 10. Bf4 {[%clk
0:51:24]} 10... O-O {[%clk 1:17:35]} 11. Ne2 {[%clk 0:51:12]} 11... a6 {[%clk
1:12:49]} 12. Bd3 {[%clk 0:48:13]} 12... Nb4 {[%clk 1:10:59]} 13. Bxd6 {[%clk
0:50:02]} 13... Qxd6 {[%clk 1:11:22]} 14. Nf4 {[%clk 0:50:18]} 14... Nxd3 {[%clk
1:09:02]} 15. Nxd3 {[%clk 0:50:23]} 15... Ne4 {[%clk 1:08:51]} 16. Rfe1 {[%clk
0:49:37]} 16... Rac8 {[%clk 1:07:30]} 17. c3 {[%clk 0:46:40]} 17... Rc7 {[%clk
0:55:33]} 18. Qe3 {[%clk 0:29:36]} 18... Qb6 {[%clk 0:48:31]} 19. Re2 {[%clk
0:33:32]} 19... Re7 {[%clk 0:43:49]} 20. Rae1 {[%clk 0:28:11]} 20... Rfe8 {[%clk
0:37:28]} 21. g4 {[%clk 0:18:40]} 21... f6 {[%clk 0:35:09]} 22. Kg2 {[%clk
0:13:09]} 22... Qd6 {[%clk 0:32:11]} 23. f4 {[%clk 0:08:13]} 23... b5 {[%clk
0:30:59]} 24. h4 {[%clk 0:06:56]} 24... Qd7 {[%clk 0:28:34]} 25. Qf3 {[%clk
0:06:25]} 25... Rf8 {[%clk 0:27:21]} 26. Qh3 {[%clk 0:04:25]} 26... Qc7 {[%clk
0:23:45]} 27. h5 {[%clk 0:03:13]} 27... h6 {[%clk 0:22:24]} 28. Re3 {[%clk
0:01:50]} 28... a5 {[%clk 0:21:20]} 29. a3 {[%clk 0:01:09]} 29... Qc4 {[%clk
0:20:19]} 30. Kg1 {[%clk 0:02:15]} 30... Qc7 {[%clk 0:18:08]} 31. Qh2 {[%clk
0:02:09]} 31... Qd7 {[%clk 0:17:09]} 32. Qg2 {[%clk 0:01:49]} 32... Rfe8 {[%clk
0:16:29]} 33. Qf3 {[%clk 0:01:27]} 33... Qc6 {[%clk 0:14:42]} 34. R1e2 {[%clk
0:01:12]} 34... Nd6 {[%clk 0:11:56]} 35. Re1 {[%clk 0:00:48]} 35... Ne4 {[%clk
0:10:45]} 36. R1e2 {[%clk 0:00:58]} 36... Qb6 {[%clk 0:08:33]} 37. Kh2 {[%clk
0:-1:-34]} 37... Nd6 {[%clk 0:07:07]} 38. Re1 {[%clk 0:00:42]} 38... Nf7 {[%clk
0:05:38]} 39. Qg3 {[%clk 0:00:37]} 39... Qc6 {[%clk 0:03:21]} 40. Kg1 {[%clk
0:30:36]} 40... Qd6 {[%clk 0:32:28]} 41. Kg2 {[%clk 0:26:34]} 41... Qc6 {[%clk
0:28:33]} 42. Kh2 {[%clk 0:21:43]} 42... Nd6 {[%clk 0:28:42]} 1/2-1/2

[Variant "Standard"]
[Site "Europe Echecs"]

[Event "Sunway Sitges Chess Festival"]
[Date "2024.12.22"]
[White "Fernandez Vazquez, Jorge"]
[Black "D Souza Kevin"]
[WhiteElo "1974"]
[BlackElo "1714"]
[Round "10.43"]
[Result "1-0"]
[TimeControl "40/5400+30:1800+30"]

1. c4 {[%clk 1:30:41]} 1... c5 {[%clk 1:22:44]} 2. g3 {[%clk 1:31:01]} 2... g6
{[%clk 1:23:00]} 3. Bg2 {[%clk 1:31:29]} 3... Bg7 {[%clk 1:23:29]} 4. Nf3 {[%clk
1:30:38]} 4... Nf6 {[%clk 1:23:57]} 5. d4 {[%clk 1:26:53]} 5... cxd4 {[%clk
1:20:23]} 6. Nxd4 {[%clk 1:27:20]} 6... O-O {[%clk 1:20:30]} 7. O-O {[%clk
1:26:11]} 7... Nc6 {[%clk 1:17:27]} 8. Nc3 {[%clk 1:26:00]} 8... a6 {[%clk
1:16:46]} 9. c5 {[%clk 1:25:45]} 9... Qa5 {[%clk 1:15:08]} 10. Nb3 {[%clk
1:25:16]} 10... Qc7 {[%clk 1:09:50]} 11. Bf4 {[%clk 1:24:57]} 11... Ne5 {[%clk
1:04:10]} 12. Qd4 {[%clk 1:16:20]} 12... d6 {[%clk 1:01:16]} 13. cxd6 {[%clk
1:16:01]} 13... exd6 {[%clk 1:01:28]} 14. Rac1 {[%clk 1:02:11]} 14... Qb8 {[%clk
0:48:10]} 15. Qb4 {[%clk 0:57:28]} 15... Be6 {[%clk 0:43:43]} 16. Na5 {[%clk
0:48:43]} 16... Nh5 {[%clk 0:36:12]} 17. Be3 {[%clk 0:46:32]} 17... Nc6 {[%clk
0:33:44]} 18. Qb6 {[%clk 0:39:12]} 18... Nxa5 {[%clk 0:32:46]} 19. Qxa5 {[%clk
0:39:40]} 19... Qd8 {[%clk 0:32:01]} 20. Bb6 {[%clk 0:37:55]} 20... Qe7 {[%clk
0:30:54]} 21. Rfd1 {[%clk 0:36:24]} 21... Rfc8 {[%clk 0:29:31]} 22. Qb4 {[%clk
0:31:26]} 22... Bf8 {[%clk 0:28:53]} 23. Qe4 {[%clk 0:25:17]} 23... Rc6 {[%clk
0:23:24]} 24. Qe3 {[%clk 0:23:47]} 24... d5 {[%clk 0:21:46]} 25. Nxd5 {[%clk
0:21:26]} 25... Bxd5 {[%clk 0:21:12]} 26. Bxd5 {[%clk 0:21:32]} 26... Qxe3
{[%clk 0:17:46]} 27. Bxe3 {[%clk 0:21:00]} 27... Rxc1 {[%clk 0:18:03]} 28. Rxc1
{[%clk 0:21:28]} 28... Nf6 {[%clk 0:18:22]} 29. Bxb7 {[%clk 0:17:26]} 29... Rb8
{[%clk 0:18:39]} 30. Bxa6 {[%clk 0:10:52]} 30... Rxb2 {[%clk 0:18:36]} 31. Rc8
{[%clk 0:07:20]} 31... Kg7 {[%clk 0:18:13]} 32. a4 {[%clk 0:07:07]} 32... Bd6
{[%clk 0:15:26]} 33. Bc4 {[%clk 0:05:22]} 33... Rb1+ {[%clk 0:13:31]} 34. Kg2
{[%clk 0:05:47]} 34... Ng4 {[%clk 0:14:00]} 35. Bd4+ {[%clk 0:05:04]} 35... Be5
{[%clk 0:14:19]} 36. Bc5 {[%clk 0:04:45]} 36... g5 {[%clk 0:11:48]} 37. Bf8+
{[%clk 0:03:50]} 37... Kf6 {[%clk 0:10:19]} 38. Rc6+ {[%clk 0:04:05]} 1-0

[Variant "Standard"]
[Site "Europe Echecs"]

[Event "Sunway Sitges Chess Festival"]
[Date "2024.12.22"]
[White "Tin, Jingyao"]
[Black "Ilamparthi A R"]
[WhiteElo "2480"]
[BlackElo "2391"]
[Round "11.1"]
[Result "1-0"]
[TimeControl "40/5400+30:1800+30"]

1. d4 {[%clk 0:05:04]} 1... f5 {[%clk 0:05:05]} 2. Bg5 {[%clk 0:05:06]} 2... g6
{[%clk 0:05:06]} 3. Nc3 {[%clk 0:05:05]} 3... Bg7 {[%clk 0:05:08]} 4. h4 {[%clk
0:05:00]} 4... Nh6 {[%clk 0:04:50]} 5. Qd2 {[%clk 0:04:45]} 5... Nf7 {[%clk
0:04:51]} 6. Bf4 {[%clk 0:04:43]} 6... d6 {[%clk 0:04:53]} 7. O-O-O {[%clk
0:04:18]} 7... e5 {[%clk 0:04:35]} 8. dxe5 {[%clk 0:04:38]} 8... dxe5 {[%clk
0:04:21]} 9. Qe3 {[%clk 0:04:33]} 9... Nd7 {[%clk 0:04:17]} 10. Nf3 {[%clk
0:04:28]} 10... O-O {[%clk 0:04:14]} 11. Bg5 {[%clk 0:04:29]} 11... Bf6 {[%clk
0:03:23]} 12. Nd5 {[%clk 0:04:23]} 12... Bxg5 {[%clk 0:03:07]} 13. hxg5 {[%clk
0:04:22]} 13... Kg7 {[%clk 0:03:09]} 14. Nf6 {[%clk 0:04:12]} 14... h5 {[%clk
0:02:50]} 15. Nxd7 {[%clk 0:04:07]} 15... Bxd7 {[%clk 0:02:51]} 16. Nxe5 {[%clk
0:04:09]} 16... Nxe5 {[%clk 0:02:50]} 17. Qxe5+ {[%clk 0:04:11]} 17... Kh7
{[%clk 0:02:52]} 18. e3 {[%clk 0:04:04]} 18... Re8 {[%clk 0:02:38]} 19. Qd5
{[%clk 0:03:46]} 19... Be6 {[%clk 0:02:28]} 20. Qxb7 {[%clk 0:03:39]} 20... Qxg5
{[%clk 0:02:27]} 21. Qxc7+ {[%clk 0:03:41]} 21... Re7 {[%clk 0:02:24]} 22. Qf4
{[%clk 0:03:36]} 22... Qf6 {[%clk 0:02:18]} 23. Bc4 {[%clk 0:03:17]} 23... Bxc4
{[%clk 0:02:10]} 24. Qxc4 {[%clk 0:03:18]} 24... Rb8 {[%clk 0:02:12]} 25. Rd4
{[%clk 0:03:12]} 25... Reb7 {[%clk 0:02:00]} 26. b3 {[%clk 0:03:10]} 26... Kh6
{[%clk 0:00:59]} 27. Rhd1 {[%clk 0:03:03]} 27... Re7 {[%clk 0:00:54]} 28. Kb1
{[%clk 0:03:00]} 28... Rbb7 {[%clk 0:00:53]} 29. Rd6 {[%clk 0:02:58]} 29... Qg5
{[%clk 0:00:55]} 30. g3 {[%clk 0:02:55]} 30... Re4 {[%clk 0:00:52]} 31. Qc8
{[%clk 0:02:48]} 31... Ree7 {[%clk 0:00:11]} 32. Qh8+ {[%clk 0:02:45]} 32... Rh7
{[%clk 0:00:13]} 33. Qf8+ {[%clk 0:02:47]} 33... Rbg7 {[%clk 0:00:07]} 34. Re6
{[%clk 0:02:40]} 34... h4 {[%clk 0:00:05]} 35. Rh1 {[%clk 0:02:35]} 1-0

[Variant "Standard"]
[Site "Europe Echecs"]

[Event "Sunway Sitges Chess Festival"]
[Date "2024.12.22"]
[White "Moussard, Jules"]
[Black "Gholami Orimi, Mahdi"]
[WhiteElo "2649"]
[BlackElo "2402"]
[Round "11.2"]
[Result "1-0"]
[TimeControl "40/5400+30:1800+30"]

1. c4 {[%clk 0:05:03]} 1... e6 {[%clk 0:05:02]} 2. Nc3 {[%clk 0:05:04]} 2... d5
{[%clk 0:05:01]} 3. d4 {[%clk 0:05:06]} 3... Bb4 {[%clk 0:05:02]} 4. cxd5 {[%clk
0:05:07]} 4... exd5 {[%clk 0:05:04]} 5. Bf4 {[%clk 0:05:07]} 5... Ne7 {[%clk
0:05:02]} 6. e3 {[%clk 0:05:06]} 6... c6 {[%clk 0:04:50]} 7. Bd3 {[%clk
0:04:53]} 7... Bf5 {[%clk 0:04:44]} 8. Ne2 {[%clk 0:04:55]} 8... O-O {[%clk
0:04:41]} 9. Bxf5 {[%clk 0:04:43]} 9... Nxf5 {[%clk 0:04:42]} 10. Qb3 {[%clk
0:04:45]} 10... Qb6 {[%clk 0:04:28]} 11. O-O {[%clk 0:04:41]} 11... Bd6 {[%clk
0:04:22]} 12. Qc2 {[%clk 0:04:41]} 12... Bxf4 {[%clk 0:04:22]} 13. Nxf4 {[%clk
0:04:31]} 13... Nd6 {[%clk 0:04:23]} 14. Na4 {[%clk 0:04:20]} 14... Qd8 {[%clk
0:04:24]} 15. Nc5 {[%clk 0:04:16]} 15... Nd7 {[%clk 0:04:22]} 16. Ncd3 {[%clk
0:04:06]} 16... Qe7 {[%clk 0:04:21]} 17. Rfe1 {[%clk 0:04:08]} 17... Rfe8 {[%clk
0:04:15]} 18. Rad1 {[%clk 0:04:03]} 18... Rad8 {[%clk 0:04:06]} 19. Qa4 {[%clk
0:04:02]} 19... a6 {[%clk 0:04:05]} 20. Qb4 {[%clk 0:04:03]} 20... a5 {[%clk
0:03:48]} 21. Qxa5 {[%clk 0:03:39]} 21... Ra8 {[%clk 0:03:49]} 22. Qc3 {[%clk
0:03:40]} 22... Rxa2 {[%clk 0:03:47]} 23. Qb3 {[%clk 0:03:35]} 23... Rea8 {[%clk
0:03:21]} 24. f3 {[%clk 0:03:31]} 24... Nf6 {[%clk 0:03:16]} 25. Ne5 {[%clk
0:03:28]} 25... R2a5 {[%clk 0:03:06]} 26. Nfd3 {[%clk 0:03:27]} 26... Nd7 {[%clk
0:02:18]} 27. Qc2 {[%clk 0:03:26]} 27... Nf8 {[%clk 0:02:08]} 28. Nc5 {[%clk
0:03:11]} 28... Ng6 {[%clk 0:01:45]} 29. Ned3 {[%clk 0:03:00]} 29... Re8 {[%clk
0:01:33]} 30. b3 {[%clk 0:02:59]} 30... Raa8 {[%clk 0:01:32]} 31. Qf2 {[%clk
0:02:56]} 31... Nb5 {[%clk 0:01:32]} 32. Qd2 {[%clk 0:02:42]} 32... Qc7 {[%clk
0:01:29]} 33. Nf2 {[%clk 0:02:40]} 33... Ra3 {[%clk 0:01:26]} 34. Ra1 {[%clk
0:02:36]} 34... Rxa1 {[%clk 0:01:22]} 35. Rxa1 {[%clk 0:02:38]} 35... Ne7 {[%clk
0:01:23]} 36. Qd3 {[%clk 0:02:29]} 36... g6 {[%clk 0:01:24]} 37. Ng4 {[%clk
0:02:30]} 37... Kg7 {[%clk 0:01:25]} 38. Re1 {[%clk 0:02:18]} 38... Nf5 {[%clk
0:01:20]} 39. Qd2 {[%clk 0:02:19]} 39... Qe7 {[%clk 0:01:13]} 40. Nd3 {[%clk
0:02:10]} 40... Qa3 {[%clk 0:01:12]} 41. e4 {[%clk 0:01:58]} 41... h5 {[%clk
0:00:16]} 42. exf5 {[%clk 0:02:00]} 42... Rxe1+ {[%clk 0:00:18]} 43. Qxe1 {[%clk
0:02:03]} 43... hxg4 {[%clk 0:00:18]} 44. fxg4 {[%clk 0:02:03]} 44... Qxb3
{[%clk 0:00:12]} 45. f6+ {[%clk 0:02:03]} 45... Kh7 {[%clk 0:00:07]} 46. Qe7
{[%clk 0:02:04]} 46... Qxd3 {[%clk 0:00:05]} 47. Qxf7+ {[%clk 0:02:04]} 47...
Kh6 {[%clk 0:00:07]} 48. h4 {[%clk 0:01:51]} 48... Qe3+ {[%clk 0:00:07]} 49. Kh2
{[%clk 0:01:53]} 49... Qf4+ {[%clk 0:00:08]} 50. Kh3 {[%clk 0:01:55]} 50... Qe3+
{[%clk 0:00:04]} 51. g3 {[%clk 0:01:58]} 1-0

[Variant "Standard"]
[Site "Europe Echecs"]

[Event "Sunway Sitges Chess Festival"]
[Date "2024.12.22"]
[White "Gholami Orimi, Mahdi"]
[Black "Moussard, Jules"]
[WhiteElo "2402"]
[BlackElo "2649"]
[Round "12.2"]
[Result "1-0"]
[TimeControl "40/5400+30:1800+30"]

1. d4 {[%clk 0:05:05]} 1... Nf6 {[%clk 0:05:05]} 2. c4 {[%clk 0:05:07]} 2... e6
{[%clk 0:05:07]} 3. Nc3 {[%clk 0:05:10]} 3... d5 {[%clk 0:05:09]} 4. cxd5 {[%clk
0:05:11]} 4... exd5 {[%clk 0:05:11]} 5. Bg5 {[%clk 0:05:13]} 5... c6 {[%clk
0:05:13]} 6. e3 {[%clk 0:05:15]} 6... h6 {[%clk 0:05:15]} 7. Bh4 {[%clk
0:05:17]} 7... Be7 {[%clk 0:05:17]} 8. Bd3 {[%clk 0:05:19]} 8... O-O {[%clk
0:05:18]} 9. Qc2 {[%clk 0:05:21]} 9... Re8 {[%clk 0:05:18]} 10. h3 {[%clk
0:05:23]} 10... a5 {[%clk 0:05:01]} 11. a3 {[%clk 0:05:24]} 11... Nh5 {[%clk
0:04:40]} 12. Bxe7 {[%clk 0:05:25]} 12... Qxe7 {[%clk 0:04:42]} 13. Nge2 {[%clk
0:05:27]} 13... Nd7 {[%clk 0:04:26]} 14. O-O {[%clk 0:05:24]} 14... Qg5 {[%clk
0:04:29]} 15. Kh2 {[%clk 0:05:16]} 15... Ndf6 {[%clk 0:04:25]} 16. Ng1 {[%clk
0:05:14]} 16... Nd7 {[%clk 0:03:58]} 17. g4 {[%clk 0:03:58]} 17... Nhf6 {[%clk
0:04:00]} 18. Nf3 {[%clk 0:03:06]} 18... Nxg4+ {[%clk 0:04:01]} 19. hxg4 {[%clk
0:03:08]} 19... Qxg4 {[%clk 0:04:03]} 20. Qe2 {[%clk 0:02:34]} 20... Nf6 {[%clk
0:03:16]} 21. Rh1 {[%clk 0:02:16]} 21... Ne4 {[%clk 0:03:07]} 22. Ne5 {[%clk
0:01:52]} 22... Qf5 {[%clk 0:02:21]} 23. Kg1 {[%clk 0:01:31]} 23... f6 {[%clk
0:02:00]} 24. Nxe4 {[%clk 0:00:59]} 24... dxe4 {[%clk 0:02:00]} 25. Bc4+ {[%clk
0:01:02]} 25... Be6 {[%clk 0:01:46]} 26. Rh5 {[%clk 0:00:31]} 26... Qh7 {[%clk
0:01:44]} 27. Bxe6+ {[%clk 0:00:33]} 27... Rxe6 {[%clk 0:01:47]} 28. Nc4 {[%clk
0:00:31]} 28... b5 {[%clk 0:01:44]} 29. Nd2 {[%clk 0:00:36]} 29... f5 {[%clk
0:01:45]} 30. Kh1 {[%clk 0:00:37]} 30... Rf8 {[%clk 0:01:32]} 31. d5 {[%clk
0:00:39]} 31... cxd5 {[%clk 0:01:32]} 32. Qxb5 {[%clk 0:00:39]} 32... Rd6 {[%clk
0:01:33]} 33. Rg1 {[%clk 0:00:37]} 33... Kh8 {[%clk 0:01:25]} 34. Qc5 {[%clk
0:00:37]} 34... Rdd8 {[%clk 0:01:26]} 35. Nb3 {[%clk 0:00:33]} 35... f4 {[%clk
0:01:26]} 36. Nd4 {[%clk 0:00:28]} 36... fxe3 {[%clk 0:01:28]} 37. fxe3 {[%clk
0:00:30]} 37... Rf6 {[%clk 0:01:30]} 38. Rxd5 {[%clk 0:00:25]} 38... Rdf8 {[%clk
0:01:32]} 39. Qe7 {[%clk 0:00:24]} 39... Qg8 {[%clk 0:01:22]} 40. Rd7 {[%clk
0:00:17]} 40... R8f7 {[%clk 0:01:15]} 41. Qd8 {[%clk 0:00:19]} 41... Rf8 {[%clk
0:01:18]} 42. Qc7 {[%clk 0:00:21]} 42... R8f7 {[%clk 0:01:03]} 43. Rxf7 {[%clk
0:00:19]} 43... Rxf7 {[%clk 0:01:06]} 44. Qe5 {[%clk 0:00:15]} 44... Qc8 {[%clk
0:01:00]} 45. Qe6 {[%clk 0:00:17]} 45... Qf8 {[%clk 0:01:00]} 46. Qxe4 {[%clk
0:00:18]} 46... Qb8 {[%clk 0:00:55]} 47. Nf5 {[%clk 0:00:13]} 47... Qc8 {[%clk
0:00:54]} 48. Rf1 {[%clk 0:00:06]} 48... g6 {[%clk 0:00:56]} 49. Qe5+ {[%clk
0:00:05]} 49... Kh7 {[%clk 0:00:59]} 50. Ng3 {[%clk 0:00:07]} 50... Qh3+ {[%clk
0:01:00]} 51. Kg1 {[%clk 0:00:10]} 51... Rb7 {[%clk 0:00:57]} 52. Qf4 {[%clk
0:00:11]} 52... Qe6 {[%clk 0:00:33]} 53. Ne4 {[%clk 0:00:13]} 53... Re7 {[%clk
0:00:36]} 54. Nf6+ {[%clk 0:00:13]} 54... Kg7 {[%clk 0:00:38]} 55. e4 {[%clk
0:00:14]} 55... Qb6+ {[%clk 0:00:37]} 56. Qf2 {[%clk 0:00:15]} 56... Qe6 {[%clk
0:00:38]} 57. Qd4 {[%clk 0:00:13]} 57... h5 {[%clk 0:00:34]} 58. Nxh5+ {[%clk
0:00:12]} 58... Kh6 {[%clk 0:00:37]} 59. Nf6 {[%clk 0:00:14]} 59... Qh3 {[%clk
0:00:32]} 60. Qd2+ {[%clk 0:00:13]} 60... Kg7 {[%clk 0:00:33]} 61. Qh2 {[%clk
0:00:15]} 61... Qe3+ {[%clk 0:00:35]} 62. Kh1 {[%clk 0:00:17]} 62... Rf7 {[%clk
0:00:09]} 63. Qh7+ {[%clk 0:00:18]} 63... Kf8 {[%clk 0:00:11]} 64. Nd7+ {[%clk
0:00:15]} 64... Ke8 {[%clk 0:00:12]} 65. Qxf7+ {[%clk 0:00:16]} 65... Kd8 {[%clk
0:00:15]} 66. Qf8+ {[%clk 0:00:17]} 1-0

[Variant "Standard"]
[Site "Europe Echecs"]

[Event "Sunway Sitges Chess Festival"]
[Date "2024.12.22"]
[White "Ilamparthi A R"]
[Black "Tin, Jingyao"]
[WhiteElo "2391"]
[BlackElo "2480"]
[Round "12.1"]
[Result "0-1"]
[TimeControl "40/5400+30:1800+30"]

1. e4 {[%clk 0:05:05]} 1... e5 {[%clk 0:05:05]} 2. Nf3 {[%clk 0:05:06]} 2... Nc6
{[%clk 0:05:07]} 3. Bc4 {[%clk 0:05:08]} 3... Nf6 {[%clk 0:05:08]} 4. Ng5 {[%clk
0:05:10]} 4... d5 {[%clk 0:05:10]} 5. exd5 {[%clk 0:05:12]} 5... Na5 {[%clk
0:05:11]} 6. Bb5+ {[%clk 0:05:14]} 6... c6 {[%clk 0:05:14]} 7. dxc6 {[%clk
0:05:16]} 7... bxc6 {[%clk 0:05:16]} 8. Qf3 {[%clk 0:05:18]} 8... Be7 {[%clk
0:05:18]} 9. Bd3 {[%clk 0:05:01]} 9... h6 {[%clk 0:05:11]} 10. Ne4 {[%clk
0:05:02]} 10... Nd5 {[%clk 0:05:13]} 11. Nbc3 {[%clk 0:04:31]} 11... Nb4 {[%clk
0:04:58]} 12. Ng3 {[%clk 0:04:11]} 12... Nxd3+ {[%clk 0:04:55]} 13. cxd3 {[%clk
0:04:06]} 13... O-O {[%clk 0:04:56]} 14. Nf5 {[%clk 0:03:58]} 14... Re8 {[%clk
0:04:30]} 15. Nxe7+ {[%clk 0:03:37]} 15... Qxe7 {[%clk 0:04:30]} 16. O-O {[%clk
0:03:32]} 16... Ba6 {[%clk 0:04:25]} 17. Re1 {[%clk 0:03:31]} 17... Rad8 {[%clk
0:04:27]} 18. Re3 {[%clk 0:03:10]} 18... c5 {[%clk 0:04:15]} 19. b3 {[%clk
0:03:08]} 19... Bb7 {[%clk 0:04:12]} 20. Qh3 {[%clk 0:02:18]} 20... Nc6 {[%clk
0:04:03]} 21. Ba3 {[%clk 0:02:12]} 21... Nb4 {[%clk 0:04:01]} 22. Rc1 {[%clk
0:02:04]} 22... Ba6 {[%clk 0:03:22]} 23. Bxb4 {[%clk 0:01:38]} 23... cxb4 {[%clk
0:03:23]} 24. Na4 {[%clk 0:01:37]} 24... Rd5 {[%clk 0:03:15]} 25. Nb2 {[%clk
0:01:33]} 25... Red8 {[%clk 0:03:05]} 26. Nc4 {[%clk 0:01:35]} 26... f6 {[%clk
0:03:05]} 27. f4 {[%clk 0:01:24]} 27... Kh8 {[%clk 0:02:28]} 28. fxe5 {[%clk
0:01:20]} 28... fxe5 {[%clk 0:02:30]} 29. Qg3 {[%clk 0:01:23]} 29... Qc5 {[%clk
0:02:08]} 30. Kh1 {[%clk 0:01:18]} 30... e4 {[%clk 0:02:06]} 31. dxe4 {[%clk
0:00:37]} 31... Rxd2 {[%clk 0:02:07]} 32. Ree1 {[%clk 0:00:39]} 32... Bxc4
{[%clk 0:01:23]} 33. Rxc4 {[%clk 0:00:40]} 33... Qf8 {[%clk 0:01:25]} 34. h3
{[%clk 0:00:33]} 34... R8d3 {[%clk 0:00:57]} 35. Qg4 {[%clk 0:00:31]} 35... Qf2
{[%clk 0:00:53]} 36. Qc8+ {[%clk 0:00:13]} 36... Kh7 {[%clk 0:00:52]} 37. Qf5+
{[%clk 0:00:15]} 37... Qxf5 {[%clk 0:00:51]} 38. exf5 {[%clk 0:00:17]} 38... Rg3
{[%clk 0:00:45]} 39. Rg1 {[%clk 0:00:18]} 39... a5 {[%clk 0:00:41]} 40. Kh2
{[%clk 0:00:17]} 40... Re3 {[%clk 0:00:27]} 41. Rc7 {[%clk 0:00:15]} 41... Rf2
{[%clk 0:00:25]} 42. Rd1 {[%clk 0:00:11]} 42... Ree2 {[%clk 0:00:22]} 43. Rg1
{[%clk 0:00:08]} 43... Rxf5 {[%clk 0:00:22]} 44. Ra7 {[%clk 0:00:07]} 44... Rxa2
{[%clk 0:00:23]} 45. Kg3 {[%clk 0:00:08]} 45... Rb2 {[%clk 0:00:23]} 46. Rd1
{[%clk 0:00:07]} 46... Rg5+ {[%clk 0:00:24]} 47. Kh4 {[%clk 0:00:07]} 47...
Rbxg2 {[%clk 0:00:16]} 48. Rdd7 {[%clk 0:00:08]} 48... Rf2 {[%clk 0:00:12]} 49.
Rd4 {[%clk 0:00:07]} 49... Rf3 {[%clk 0:00:11]} 50. Rc4 {[%clk 0:00:06]} 50...
Rxb3 {[%clk 0:00:11]} 51. Rf4 {[%clk 0:00:08]} 51... Rc3 {[%clk 0:00:13]} 52.
Ra8 {[%clk 0:00:08]} 52... Rg1 {[%clk 0:00:13]} 53. Ra7 {[%clk 0:00:08]} 53...
b3 {[%clk 0:00:14]} 54. Rb7 {[%clk 0:00:09]} 54... b2 {[%clk 0:00:15]} 0-1

[Variant "Standard"]
[Site "Europe Echecs"]